fUST/lending_fUST_20250630
["ID","MTS","AMOUNT","RATE_DAILY","PERIOD"]
[368672894,1751290233204,-408.04746031,0.00018485,2]
[368672895,1751290233213,-460.0,0.00018485,2]
[368672896,1751290233222,-460.0,0.00018485,2]
[368672897,1751290233232,-461.98817808,0.00018485,2]
[368672898,1751290233241,-460.0,0.00018485,2]
[368672899,1751290233251,-460.0,0.00018485,2]
[368672900,1751290233261,-460.0,0.00018485,2]
[368672901,1751290233270,-460.0,0.00018485,2]
[368672902,1751290233280,-460.0,0.00018485,2]
[368672903,1751290233290,-460.0,0.00018485,2]
[368672904,1751290233300,-460.0,0.00018485,2]
[368672905,1751290233311,-460.0,0.00018485,2]
[368672906,1751290233321,-460.0,0.00018485,2]
[368672907,1751290233331,-460.0,0.00018485,2]
[368672908,1751290233340,-460.0,0.00018485,2]
[368672909,1751290233351,-212.85,0.00018485,2]
[368672910,1751290233361,-460.0,0.00018485,2]
[368672911,1751290233371,-422.01940122,0.00018485,2]
[368672912,1751290233382,-460.0,0.00018485,2]
[368672913,1751290233391,-460.0,0.00018485,2]
[368672914,1751290233400,-460.0,0.00018485,2]
[368672915,1751290233410,-460.0,0.00018485,2]
[368672916,1751290233419,-460.0,0.00018485,2]
[368672917,1751290233429,-460.0,0.00018485,2]
[368672918,1751290233439,-500.0,0.00018485,2]
[368672919,1751290233448,-460.0,0.00018485,2]
[368672920,1751290233459,-460.0,0.00018485,2]
[368672921,1751290233470,-460.0,0.00018485,2]
[368672922,1751290233479,-460.0,0.00018485,2]
[368672923,1751290233489,-762.06,0.00018485,2]
[368672924,1751290233498,-460.0,0.00018485,2]
[368672925,1751290233508,-833.12,0.00018485,2]
[368672926,1751290233517,-525.49,0.00018485,2]
[368672927,1751290233527,-460.0,0.00018485,2]
[368672928,1751290233537,-460.0,0.00018485,2]
[368672929,1751290233546,-235.88028879,0.00018485,2]
[368672930,1751290233561,-224.11971121,0.00018485,2]
[368672931,1751290233571,-460.0,0.00018485,2]
[368672932,1751290233580,-1256.3,0.00018485,2]
[368672933,1751290233590,-460.0,0.00018485,2]
[368672934,1751290233601,-460.0,0.00018485,2]
[368672935,1751290233611,-817.08,0.00018485,2]
[368672936,1751290233621,-460.0,0.00018485,2]
[368672937,1751290233631,-460.0,0.00018485,2]
[368672938,1751290233641,-1451.3318511,0.00018485,2]
[368672939,1751290233654,-802.5481489,0.00018485,2]
[368672940,1751290233664,-243.5538511,0.00018486,2]
[368672950,1751290238095,-216.4461489,0.00018486,2]
[368672951,1751290238105,-66.59225419,0.00018486,2]
[368672952,1751290238117,-131.14245663,0.00018486,2]
[368672953,1751290238126,-460.0,0.00018486,2]
[368672954,1751290238136,-310.23214191,0.00018486,2]
[368672955,1751290238146,-215.70540546,0.00018486,2]
[368672956,1751290238157,-244.29459454,0.00018486,2]
[368672957,1751290238166,-336.34685223,0.00018486,2]
[368672958,1751290238176,-379.9585558,0.00018486,2]
[368672959,1751290238185,-460.0,0.00018486,2]
[368672960,1751290238195,-460.0,0.00018486,2]
[368672961,1751290238205,-460.0,0.00018486,2]
[368672962,1751290238214,-460.0,0.00018486,2]
[368672963,1751290238223,-460.0,0.00018486,2]
[368672964,1751290238233,-460.0,0.00018486,2]
[368672965,1751290238242,-460.0,0.00018486,2]
[368672966,1751290238251,-199.0722401,0.00018486,2]
[368672967,1751290238262,-460.0,0.00018486,2]
[368672968,1751290238271,-460.0,0.00018486,2]
[368672969,1751290238280,-310.0,0.00018486,2]
[368672970,1751290238289,-460.0,0.00018486,2]
[368672971,1751290238299,-490.0,0.00018486,2]
[368672972,1751290238310,-460.0,0.00018486,2]
[368672973,1751290238320,-460.0,0.00018486,2]
[368672974,1751290238330,-465.99300752,0.00018486,2]
[368672975,1751290238339,-461.24789396,0.00018486,2]
[368672976,1751290238349,-460.0,0.00018486,2]
[368672977,1751290238359,-460.0,0.00018486,2]
[368672978,1751290238369,-461.71286314,0.00018486,2]
[368672979,1751290238379,-460.0,0.00018486,2]
[368672980,1751290238389,-460.0,0.00018486,2]
[368672981,1751290238399,-460.0,0.00018486,2]
[368672982,1751290238408,-461.86744919,0.00018486,2]
[368672983,1751290238418,-461.57389443,0.00018486,2]
[368672984,1751290238427,-460.0,0.00018486,2]
[368672985,1751290238438,-460.0,0.00018486,2]
[368672986,1751290238447,-460.0,0.00018486,2]
[368672987,1751290238457,-460.0,0.00018486,2]
[368672988,1751290238470,-460.0,0.00018486,2]
[368672989,1751290238489,-462.61143299,0.00018486,2]
[368672990,1751290238500,-460.0,0.00018486,2]
[368672991,1751290238511,-460.0,0.00018486,2]
[368672992,1751290238520,-460.0,0.00018486,2]
[368672993,1751290238530,-464.16680301,0.00018486,2]
[368672994,1751290238540,-460.98819712,0.00018486,2]
[368672995,1751290238552,-460.0,0.00018486,2]
[368672996,1751290238562,-539.05848828,0.00018486,2]
[368672997,1751290238572,-461.77402854,0.00018486,2]
[368672998,1751290238583,-460.0,0.00018486,2]
[368672999,1751290238593,-460.0,0.00018486,2]
[368673000,1751290238603,-465.20864405,0.00018486,2]
[368673001,1751290238615,-460.0,0.00018486,2]
[368673002,1751290238624,-460.0,0.00018486,2]
[368673003,1751290238634,-460.0,0.00018486,2]
[368673004,1751290238644,-460.0,0.00018486,2]
[368673005,1751290238655,-460.0,0.00018486,2]
[368673006,1751290238664,-460.0,0.00018486,2]
[368673007,1751290238674,-460.0,0.00018486,2]
[368673008,1751290238683,-454.0,0.00018486,2]
[368673009,1751290238693,-460.0,0.00018486,2]
[368673010,1751290238702,-460.0,0.00018486,2]
[368673011,1751290238712,-460.0,0.00018486,2]
[368673012,1751290238721,-460.0,0.00018486,2]
[368673013,1751290238731,-460.0,0.00018486,2]
[368673014,1751290238740,-460.0,0.00018486,2]
[368673015,1751290238751,-460.0,0.00018486,2]
[368673016,1751290238762,-460.0,0.00018486,2]
[368673017,1751290238773,-500.0,0.00018486,2]
[368673018,1751290238783,-460.0,0.00018486,2]
[368673019,1751290238792,-460.0,0.00018486,2]
[368673020,1751290238803,-460.0,0.00018486,2]
[368673021,1751290238813,-460.0,0.00018486,2]
[368673022,1751290238823,-461.85412519,0.00018486,2]
[368673023,1751290238833,-460.13500412,0.00018486,2]
[368673024,1751290238843,-460.0,0.00018486,2]
[368673025,1751290238853,-460.0,0.00018486,2]
[368673026,1751290238862,-460.0,0.00018486,2]
[368673027,1751290238873,-460.0,0.00018486,2]
[368673028,1751290238883,-433.46174028,0.00018487,2]
[368673029,1751290238893,-420.0,0.00018487,2]
[368673030,1751290238903,-460.0,0.00018488,2]
[368673031,1751290238913,-460.0,0.00018488,2]
[368673032,1751290238922,-460.0,0.00018488,2]
[368673033,1751290238932,-406.30809861,0.00018488,2]
[368673034,1751290238941,-460.0,0.00018488,2]
[368673035,1751290238951,-2172.0,0.00018532,2]
[368673036,1751290238961,-1299.43,0.00018757,2]
[368673037,1751290238970,-460.0,0.00018757,2]
[368673038,1751290238980,-1296.16,0.00018757,2]
[368673039,1751290238989,-460.0,0.00018757,2]
[368673040,1751290238998,-460.0,0.00018757,2]
[368673041,1751290239008,-1380.57,0.00018757,2]
[368673042,1751290239018,-460.0,0.00018757,2]
[368673043,1751290239027,-460.0,0.00018757,2]
[368673044,1751290239036,-1290.22,0.00018757,2]
[368673045,1751290239046,-1816.75,0.00018757,2]
[368673046,1751290239057,-460.0,0.00018757,2]
[368673047,1751290239066,-460.0,0.00018757,2]
[368673048,1751290239076,-869.9,0.00018757,2]
[368673049,1751290239086,-765.4,0.00018757,2]
[368673050,1751290239096,-508.9693991,0.00018757,2]
[368673051,1751290239106,-460.0,0.00018757,2]
[368673052,1751290239119,-460.0,0.00018757,2]
[368673053,1751290239128,-460.0,0.00018758,2]
[368673054,1751290239138,-460.0,0.00018758,2]
[368673055,1751290239147,-540.0,0.00018758,2]
[368673056,1751290239156,-219.2682285,0.00018758,2]
[368673057,1751290239166,-460.0,0.00018758,2]
[368673058,1751290239175,-460.0,0.00018758,2]
[368673059,1751290239185,-460.0,0.00018758,2]
[368673060,1751290239194,-166.84490938,0.00018758,2]
[368673061,1751290239203,-841.17,0.00018758,2]
[368673062,1751290239213,-460.0,0.00018758,2]
[368673063,1751290239222,-460.0,0.00018758,2]
[368673064,1751290239232,-460.0,0.00018758,2]
[368673065,1751290239241,-557.69,0.00018758,2]
[368673066,1751290239251,-460.0,0.00018758,2]
[368673067,1751290239260,-460.0,0.00018758,2]
[368673068,1751290239271,-460.0,0.00018758,2]
[368673069,1751290239280,-460.0,0.00018758,2]
[368673070,1751290239289,-460.0,0.00018758,2]
[368673071,1751290239299,-460.0,0.00018758,2]
[368673072,1751290239310,-503.13,0.00018758,2]
[368673073,1751290239319,-460.0,0.00018758,2]
[368673074,1751290239329,-460.0,0.00018758,2]
[368673075,1751290239339,-1706.33,0.00018758,2]
[368673076,1751290239348,-460.0,0.00018758,2]
[368673077,1751290239358,-460.0,0.00018758,2]
[368673078,1751290239368,-460.0,0.00018758,2]
[368673079,1751290239377,-460.0,0.00018758,2]
[368673080,1751290239387,-2255.38,0.00018758,2]
[368673081,1751290239396,-460.0,0.00018758,2]
[368673082,1751290239406,-460.0,0.00018758,2]
[368673083,1751290239415,-478.64,0.00018758,2]
[368673084,1751290239425,-497.22,0.00018758,2]
[368673085,1751290239435,-460.0,0.00018758,2]
[368673086,1751290239444,-460.0,0.00018758,2]
[368673087,1751290239455,-460.0,0.00018758,2]
[368673088,1751290239467,-460.0,0.00018758,2]
[368673089,1751290239476,-460.0,0.00018758,2]
[368673090,1751290239486,-460.0,0.00018758,2]
[368673091,1751290239495,-460.0,0.00018759,2]
[368673092,1751290239506,-460.0,0.00018759,2]
[368673093,1751290239516,-460.0,0.00018759,2]
[368673094,1751290239526,-460.0,0.00018759,2]
[368673095,1751290239536,-460.0,0.00018759,2]
[368673096,1751290239547,-291.21418704,0.00018759,2]
[368673097,1751290239557,-460.0,0.00018759,2]
[368673098,1751290239567,-461.76858305,0.00018759,2]
[368673099,1751290239579,-460.0,0.00018759,2]
[368673100,1751290239589,-244.60110214,0.00018759,2]
[368673101,1751290239599,-460.0,0.00018759,2]
[368673102,1751290239610,-460.0,0.00018759,2]
[368673103,1751290239620,-174.58661708,0.00018759,2]
[368673104,1751290239631,-762.06,0.00018759,2]
[368673105,1751290239640,-460.0,0.00018759,2]
[368673106,1751290239650,-833.12,0.00018759,2]
[368673107,1751290239660,-525.49,0.00018759,2]
[368673108,1751290239671,-460.0,0.00018759,2]
[368673109,1751290239680,-263.28257756,0.00018759,2]
[368673110,1751290239690,-460.0,0.00018759,2]
[368673111,1751290239700,-460.0,0.00018759,2]
[368673112,1751290239710,-1256.3,0.00018759,2]
[368673114,1751290239720,-460.0,0.00018759,2]
[368673116,1751290239730,-460.0,0.00018759,2]
[368673117,1751290239740,-817.08,0.00018759,2]
[368673118,1751290239750,-460.0,0.00018759,2]
[368673119,1751290239760,-460.0,0.00018759,2]
[368673120,1751290239769,-2253.88,0.00018759,2]
[368673121,1751290239780,-460.0,0.0001876,2]
[368673122,1751290239790,-460.0,0.0001876,2]
[368673123,1751290239800,-460.0,0.0001876,2]
[368673124,1751290239810,-265.30668565,0.0001876,2]
[368673126,1751290239821,-512.79881809,0.0001876,2]
[368673128,1751290239831,-460.0,0.0001876,2]
[368673130,1751290239841,-447.8459424,0.00018762,2]
[368673131,1751290239851,-257.0,0.00018862,2]
[368673132,1751290239861,-402.61974851,0.00018883,2]
[368673133,1751290239871,-1542.92938105,0.000189,2]
[368673134,1751290239881,-4638.95421072,0.000189,2]
[368673135,1751290239891,-500.0,0.0001894,2]
[368673136,1751290239901,-500.0,0.0001894,2]
[368673137,1751290239911,-500.0,0.0001894,2]
[368673138,1751290239921,-297.15171882,0.0001894,2]
[368673139,1751290239930,-500.0,0.0001894,2]
[368673140,1751290239940,-500.0,0.0001894,2]
[368673141,1751290239950,-500.0,0.0001894,2]
[368673142,1751290239959,-500.0,0.0001894,2]
[368673143,1751290239970,-182.01471026,0.0001894,2]
[368673144,1751290239979,-500.0,0.0001894,2]
[368673145,1751290239988,-636.35853904,0.0001894,2]
[368673146,1751290239998,-500.0,0.0001894,2]
[368673147,1751290240007,-500.0,0.0001894,2]
[368673148,1751290240017,-500.0,0.0001894,2]
[368673149,1751290240026,-500.0,0.0001894,2]
[368673150,1751290240036,-500.0,0.0001894,2]
[368673151,1751290240045,-500.0,0.0001894,2]
[368673152,1751290240056,-500.0,0.0001894,2]
[368673153,1751290240066,-500.0,0.0001894,2]
[368673154,1751290240076,-500.0,0.0001894,2]
[368673155,1751290240086,-500.0,0.0001894,2]
[368673156,1751290240096,-241.87587709,0.0001894,2]
[368673157,1751290240105,-169.31311396,0.0001894,2]
[368673158,1751290240114,-335000.84783995,0.00018941,2]
[368673159,1751290240124,-362.63861005,0.00018973,2]
[368673160,1751290240133,-500.0,0.00018973,2]
[368673161,1751290240143,-500.0,0.00018973,2]
[368673162,1751290240152,-151.0,0.00019,2]
[368673163,1751290240162,-185.45930952,0.0001901,2]
[368673164,1751290240171,-1299.43,0.00019031,2]
[368673165,1751290240180,-460.0,0.00019031,2]
[368673166,1751290240190,-1296.16,0.00019031,2]
[368673167,1751290240199,-460.0,0.00019031,2]
[368673168,1751290240208,-460.0,0.00019031,2]
[368673169,1751290240218,-1380.57,0.00019031,2]
[368673170,1751290240227,-460.0,0.00019031,2]
[368673171,1751290240237,-460.0,0.00019031,2]
[368673172,1751290240247,-1290.22,0.00019031,2]
[368673173,1751290240256,-1816.75,0.00019031,2]
[368673174,1751290240265,-460.0,0.00019031,2]
[368673175,1751290240275,-460.0,0.00019031,2]
[368673176,1751290240285,-869.9,0.00019031,2]
[368673177,1751290240295,-765.4,0.00019031,2]
[368673178,1751290240305,-460.0,0.00019031,2]
[368673179,1751290240316,-460.0,0.00019031,2]
[368673180,1751290240326,-460.0,0.00019032,2]
[368673181,1751290240335,-460.0,0.00019032,2]
[368673182,1751290240344,-841.17,0.00019032,2]
[368673183,1751290240354,-460.0,0.00019032,2]
[368673184,1751290240370,-460.0,0.00019032,2]
[368673185,1751290240380,-460.0,0.00019032,2]
[368673186,1751290240389,-460.0,0.00019032,2]
[368673187,1751290240399,-460.0,0.00019032,2]
[368673188,1751290240408,-460.0,0.00019032,2]
[368673189,1751290240418,-460.0,0.00019032,2]
[368673190,1751290240427,-460.0,0.00019032,2]
[368673191,1751290240436,-503.13,0.00019032,2]
[368673192,1751290240446,-460.0,0.00019032,2]
[368673193,1751290240456,-460.0,0.00019032,2]
[368673194,1751290240469,-1706.33,0.00019032,2]
[368673195,1751290240479,-460.0,0.00019032,2]
[368673196,1751290240488,-460.0,0.00019032,2]
[368673197,1751290240498,-460.0,0.00019032,2]
[368673198,1751290240508,-460.0,0.00019032,2]
[368673199,1751290240518,-2255.38,0.00019032,2]
[368673200,1751290240531,-460.0,0.00019032,2]
[368673201,1751290240542,-478.64,0.00019032,2]
[368673202,1751290240552,-497.22,0.00019032,2]
[368673203,1751290240562,-460.0,0.00019032,2]
[368673204,1751290240571,-460.0,0.00019032,2]
[368673205,1751290240581,-354.50131613,0.00019032,2]
[368673206,1751290240591,-255.28396051,0.00019032,2]
[368673207,1751290240600,-460.0,0.00019032,2]
[368673208,1751290240610,-460.0,0.00019033,2]
[368673209,1751290240621,-460.0,0.00019033,2]
[368673210,1751290240630,-460.0,0.00019033,2]
[368673211,1751290240640,-460.0,0.00019033,2]
[368673212,1751290240650,-460.0,0.00019033,2]
[368673213,1751290240660,-762.06,0.00019033,2]
[368673214,1751290240669,-460.0,0.00019033,2]
[368673215,1751290240679,-833.12,0.00019033,2]
[368673216,1751290240689,-525.49,0.00019033,2]
[368673217,1751290240699,-1256.3,0.00019033,2]
[368673218,1751290240708,-460.0,0.00019033,2]
[368673219,1751290240718,-460.0,0.00019033,2]
[368673220,1751290240869,-817.08,0.00019033,2]
[368673221,1751290240879,-460.0,0.00019033,2]
[368673222,1751290240888,-460.0,0.00019033,2]
[368673223,1751290240898,-2253.88,0.00019033,2]
[368673224,1751290240907,-460.0,0.00019034,2]
[368673225,1751290240917,-213.84631524,0.00019051,2]
[368673226,1751290240926,-230.31346914,0.00019051,2]
[368673227,1751290240936,-160.0,0.00019051,2]
[368673228,1751290240945,-160.0,0.00019051,2]
[368673229,1751290240955,-160.0,0.00019051,2]
[368673230,1751290240964,-214.99848635,0.00019051,2]
[368673231,1751290240973,-160.0,0.00019051,2]
[368673232,1751290240983,-847.41730813,0.00019051,2]
[368673233,1751290240992,-837.16779106,0.00019051,2]
[368673234,1751290241001,-12569.13231816,0.00019051,2]
[368673235,1751290241011,-160.0,0.00019051,2]
[368673236,1751290241020,-690.642,0.00019102,2]
[368673237,1751290241030,-207.4,0.00019102,2]
[368673238,1751290241040,-500.0,0.00019102,2]
[368673239,1751290241050,-5000.0,0.00019102,2]
[368673240,1751290241062,-4638.9542106,0.00019107,2]
[368673241,1751290241072,-732.341235,0.00019123,2]
[368673242,1751290241082,-716.195754,0.00019157,2]
[368673243,1751290241091,-500.0,0.00019164,2]
[368673244,1751290241101,-1002.41724012,0.00019171,2]
[368673245,1751290241111,-245.0,0.00019174,2]
[368673246,1751290241120,-500.0,0.00019178,2]
[368673247,1751290241129,-234.47094767,0.00019178,2]
[368673248,1751290241139,-273.3843016,0.00019178,2]
[368673249,1751290241148,-427.275661,0.00019178,2]
[368673250,1751290241158,-500.0,0.00019205,2]
[368673251,1751290241167,-500.0,0.00019205,2]
[368673252,1751290241177,-742.6949969,0.00019212,2]
[368673253,1751290241186,-500.0,0.00019232,2]
[368673254,1751290241196,-500.0,0.00019232,2]
[368673255,1751290241205,-500.0,0.0001926,2]
[368673256,1751290241215,-500.0,0.0001926,2]
[368673257,1751290241224,-770.17471178,0.00019267,2]
[368673258,1751290241233,-500.0,0.00019287,2]
[368673259,1751290241242,-500.0,0.00019287,2]
[368673260,1751290241252,-151.0,0.000193,2]
[368673261,1751290241262,-1299.43,0.00019305,2]
[368673262,1751290241271,-460.0,0.00019305,2]
[368673263,1751290241281,-1296.16,0.00019305,2]
[368673264,1751290241290,-460.0,0.00019305,2]
[368673265,1751290241299,-461.48526552,0.00019305,2]
[368673266,1751290241310,-1380.57,0.00019305,2]
[368673267,1751290241319,-460.0,0.00019305,2]
[368673268,1751290241329,-460.0,0.00019305,2]
[368673269,1751290241338,-1290.22,0.00019305,2]
[368673270,1751290241348,-1816.75,0.00019305,2]
[368673271,1751290241357,-460.0,0.00019305,2]
[368673272,1751290241366,-592.79,0.00019305,2]
[368673273,1751290241376,-869.9,0.00019305,2]
[368673274,1751290241386,-765.4,0.00019305,2]
[368673275,1751290241395,-499.25,0.00019305,2]
[368673276,1751290241404,-484.18,0.00019305,2]
[368673277,1751290241413,-306.82598111,0.00019306,2]
[368673278,1751290241422,-841.17,0.00019306,2]
[368673279,1751290241432,-460.0,0.00019306,2]
[368673280,1751290241442,-566.7,0.00019306,2]
[368673281,1751290241452,-460.0,0.00019306,2]
[368673282,1751290241463,-460.0,0.00019306,2]
[368673283,1751290241472,-460.0,0.00019306,2]
[368673284,1751290241481,-460.0,0.00019306,2]
[368673285,1751290241491,-460.0,0.00019306,2]
[368673286,1751290241500,-460.0,0.00019306,2]
[368673287,1751290241509,-503.13,0.00019306,2]
[368673288,1751290241518,-460.0,0.00019306,2]
[368673289,1751290241527,-1706.33,0.00019306,2]
[368673290,1751290241538,-460.0,0.00019306,2]
[368673291,1751290241547,-460.0,0.00019306,2]
[368673292,1751290241558,-460.0,0.00019306,2]
[368673293,1751290241567,-460.0,0.00019306,2]
[368673294,1751290241577,-2255.38,0.00019306,2]
[368673295,1751290241586,-460.0,0.00019306,2]
[368673296,1751290241595,-478.64,0.00019306,2]
[368673297,1751290241605,-497.22,0.00019306,2]
[368673298,1751290241615,-460.0,0.00019306,2]
[368673299,1751290241625,-460.0,0.00019306,2]
[368673300,1751290241635,-460.0,0.00019306,2]
[368673301,1751290241644,-460.0,0.00019307,2]
[368673302,1751290241654,-460.0,0.00019307,2]
[368673303,1751290241664,-460.0,0.00019307,2]
[368673304,1751290241674,-460.0,0.00019307,2]
[368673305,1751290241684,-762.06,0.00019307,2]
[368673306,1751290241693,-460.0,0.00019307,2]
[368673307,1751290241703,-833.12,0.00019307,2]
[368673308,1751290241712,-525.49,0.00019307,2]
[368673309,1751290241721,-1256.3,0.00019307,2]
[368673310,1751290241731,-460.0,0.00019307,2]
[368673311,1751290241741,-460.0,0.00019307,2]
[368673312,1751290241750,-817.08,0.00019307,2]
[368673313,1751290241759,-460.0,0.00019307,2]
[368673314,1751290241769,-460.0,0.00019307,2]
[368673315,1751290241779,-2253.88,0.00019307,2]
[368673316,1751290241788,-473.60142412,0.00019308,2]
[368673317,1751290241797,-4638.9542106,0.00019314,2]
[368673318,1751290241807,-500.0,0.00019315,2]
[368673319,1751290241817,-507.0,0.00019315,2]
[368673320,1751290241827,-798.67117612,0.00019322,2]
[368673321,1751290241836,-500.0,0.00019342,2]
[368673322,1751290241846,-500.0,0.00019369,2]
[368673323,1751290241855,-544.90681819,0.00019377,2]
[368673324,1751290241865,-402.61974851,0.00019379,2]
[368673325,1751290241874,-500.0,0.00019397,2]
[368673326,1751290241884,-500.0,0.00019424,2]
[368673327,1751290241894,-500.0,0.00019452,2]
[368673328,1751290241904,-380.0,0.00019479,2]
[368673329,1751290241914,-200.0,0.000195,2]
[368673330,1751290241923,-151.0,0.000195,2]
[368673331,1751290241933,-214179.14860191,0.0001952,2]
[368673332,1751290241948,-10838.02270614,0.0001952,2]
[368673333,1751290242415,-2073.16201026,0.0001952,2]
[368673334,1751290242500,-8266.04810404,0.0001952,2]
[368673335,1751290242516,-3840.46907172,0.0001952,2]
[368673336,1751290242579,-540.44922407,0.0001952,2]
[368673337,1751290242592,-34762.01623605,0.0001952,2]
[368673339,1751290243112,-15063.26038974,0.0001952,2]
[368673343,1751290246302,-13791.33233946,0.0001952,2]
[368673344,1751290246334,-3173.288892,0.0001952,2]
[368673345,1751290246347,-6147.00626826,0.0001952,2]
[368673346,1751290246364,-1735.0991368,0.0001952,2]
[368673371,1751290445090,177.50856364,0.00017887,2]
[368673372,1751290462876,229.1752038,0.00017621,2]
[368673373,1751290503131,225.0,0.0001811,2]
[368673374,1751290536348,327.02103,0.00013699,2]
[368673398,1751290806917,24900.0,0.00017481,2]
[368673404,1751290963056,4487.0633462,0.0001745,2]
[368673405,1751290969007,1000.0,0.00021918,60]
[368673408,1751290981555,1000.0,0.00021918,60]
[368673409,1751290986797,1000.0,0.00021918,60]
[368673410,1751290994566,500.0,0.00021918,60]
[368673444,1751291332771,250.0,0.00017145,2]
[368673450,1751291415158,163.61,0.00021918,60]
[368673657,1751291438374,-151.0,0.000183,2]
[368673658,1751291438384,-230.83123769,0.00018337,2]
[368673659,1751291438395,-404.66631914,0.00018337,2]
[368673660,1751291438405,-460.0,0.00018338,2]
[368673661,1751291438414,-300.0,0.00018338,2]
[368673662,1751291438424,-300.0,0.00018338,2]
[368673663,1751291438433,-796.8198658,0.00018338,2]
[368673664,1751291438447,-403.1801342,0.00018338,2]
[368673665,1751291438456,-280.95093012,0.00018339,2]
[368673666,1751291438468,-219.04906988,0.00018339,2]
[368673667,1751291438477,-249.50901927,0.00018339,2]
[368673668,1751291438488,-250.49098073,0.00018339,2]
[368673669,1751291438498,-500.0,0.00018339,2]
[368673670,1751291438508,-500.0,0.00018339,2]
[368673671,1751291438518,-500.0,0.00018339,2]
[368673672,1751291438527,-77.03191927,0.00018339,2]
[368673674,1751291438539,-422.96808073,0.00018339,2]
[368673676,1751291438548,-500.0,0.00018339,2]
[368673678,1751291438557,-217.40849198,0.00018339,2]
[368673680,1751291438566,-500.0,0.00018339,2]
[368673681,1751291438575,-500.0,0.00018339,2]
[368673682,1751291438585,-205.41660158,0.00018339,2]
[368673683,1751291438594,-500.0,0.00018339,2]
[368673684,1751291438603,-500.0,0.00018339,2]
[368673685,1751291438613,-500.0,0.00018339,2]
[368673686,1751291438622,-500.0,0.00018339,2]
[368673687,1751291438631,-500.0,0.00018339,2]
[368673688,1751291438641,-500.0,0.00018339,2]
[368673689,1751291438650,-500.0,0.00018339,2]
[368673690,1751291438659,-500.0,0.00018339,2]
[368673691,1751291438669,-619.81241712,0.00018339,2]
[368673692,1751291438678,-500.0,0.00018339,2]
[368673693,1751291438688,-500.0,0.00018339,2]
[368673694,1751291438697,-500.0,0.00018339,2]
[368673695,1751291438706,-166.88360754,0.00018339,2]
[368673696,1751291438716,-450.0,0.00018339,2]
[368673697,1751291438726,-500.0,0.00018339,2]
[368673698,1751291438736,-500.0,0.00018339,2]
[368673699,1751291438745,-289.14551565,0.00018339,2]
[368673700,1751291438755,-500.0,0.00018339,2]
[368673701,1751291438764,-204.60441308,0.00018339,2]
[368673702,1751291438773,-500.0,0.00018339,2]
[368673703,1751291438783,-540.90756171,0.00018339,2]
[368673704,1751291438792,-500.0,0.00018339,2]
[368673705,1751291438802,-154.79782039,0.00018339,2]
[368673706,1751291438811,-500.0,0.00018339,2]
[368673707,1751291438821,-500.0,0.00018339,2]
[368673708,1751291438831,-500.0,0.00018339,2]
[368673709,1751291438843,-500.0,0.00018339,2]
[368673710,1751291438853,-500.0,0.00018339,2]
[368673711,1751291438862,-208.17532798,0.00018339,2]
[368673712,1751291438872,-500.0,0.00018339,2]
[368673713,1751291438883,-500.0,0.00018339,2]